fUSD/lending_fUSD_20240104
["ID","MTS","AMOUNT","RATE_DAILY","PERIOD"]
[310110061,1704349848137,-500.0,0.0003315,2]
[310110062,1704349848147,-500.0,0.0003315,2]
[310110063,1704349848159,-500.0,0.0003315,2]
[310110064,1704349848170,-10515.77,0.0003315,2]
[310110065,1704349848180,-500.0,0.0003315,2]
[310110066,1704349848190,-500.0,0.0003315,2]
[310110067,1704349848200,-5402.63,0.0003315,2]
[310110068,1704349848211,-500.0,0.0003315,2]
[310110069,1704349848221,-500.0,0.0003315,2]
[310110070,1704349848231,-624.73,0.0003315,2]
[310110071,1704349848241,-283.04182647,0.0003315,2]
[310110072,1704349848251,-2900.89,0.0003315,2]
[310110073,1704349848261,-728.85,0.0003315,2]
[310110074,1704349848271,-151.0,0.0003315,7]
[310110075,1704349848281,-151.0,0.0003315,7]
[310110076,1704349848291,-183.139134,0.00033162,7]
[310110077,1704349848300,-183.139134,0.00033162,7]
[310110078,1704349848310,-16102.18301658,0.00033162,2]
[310110079,1704349848320,-9650.9122724,0.00033162,2]
[310110080,1704349848330,-4890.42084288,0.00033162,2]
[310110081,1704349848340,-223.16,0.00033174,2]
[310110082,1704349848351,-880.23,0.00033184,2]
[310110083,1704349848360,-247.79798548,0.00033186,6]
[310110084,1704349848370,-247.79798549,0.00033186,6]
[310110085,1704349848380,-157.40104,0.00033198,2]
[310110086,1704349848390,-3448.0271994,0.00033245,5]
[310110087,1704349848399,-154.59,0.00033268,2]
[310110088,1704349848410,-157.40104,0.00033298,2]
[310110089,1704349848420,-1027.0,0.000333,7]
[310110090,1704349848430,-156.35,0.00033306,2]
[310110091,1704349848440,-880.23,0.00033347,2]
[310110092,1704349848450,-1339.21049052,0.00033352,2]
[310110093,1704349848460,-29945.5165296,0.00033355,2]
[310110094,1704349848470,-2187.7480958,0.00033378,2]
[310110095,1704349848481,-1249.6158508,0.00033378,2]
[310110096,1704349848491,-154127.0469108,0.00033378,2]
[310110097,1704349848501,-364.5,0.00033378,7]
[310110098,1704349848511,-364.5,0.00033378,7]
[310110099,1704349848521,-157.40104,0.00033398,2]
[310110100,1704349848531,-3000.0,0.000334,2]
[310110101,1704349848541,-304.434168,0.000334,2]
[310110102,1704349848550,-500.0,0.000334,2]
[310110103,1704349848560,-1962.663428,0.000334,2]
[310110104,1704349848573,-200.0,0.000334,2]
[310110105,1704349848583,-155.00148,0.000334,2]
[310110106,1704349848594,-6770.6829145,0.00033401,2]
[310110107,1704349848604,-5000.0,0.00033405,2]
[310110108,1704349848614,-151.0,0.00033422,7]
[310110109,1704349848624,-151.0,0.00033422,7]
[310110110,1704349848635,-17807.40694116,0.00033422,2]
[310110111,1704349848645,-10474.61610471,0.00033423,4]
[310110112,1704349848655,-185.0310839,0.00033423,2]
[310110113,1704349848665,-165.80063501,0.00033423,2]
[310110114,1704349848675,-500.0,0.00033424,2]
[310110115,1704349848685,-500.0,0.00033424,2]
[310110116,1704349848695,-500.0,0.00033424,2]
[310110117,1704349848705,-523.01,0.00033424,2]
[310110118,1704349848716,-500.0,0.00033424,2]
[310110119,1704349848726,-1243.37,0.00033424,2]
[310110120,1704349848736,-500.0,0.00033424,2]
[310110121,1704349848745,-500.0,0.00033424,2]
[310110122,1704349848757,-981.28,0.00033424,2]
[310110123,1704349848767,-500.0,0.00033424,2]
[310110124,1704349848777,-500.0,0.00033424,2]
[310110125,1704349848786,-500.0,0.00033424,2]
[310110126,1704349848797,-500.0,0.00033424,2]
[310110127,1704349848807,-500.0,0.00033424,2]
[310110128,1704349848817,-500.0,0.00033424,2]
[310110129,1704349848827,-500.0,0.00033424,2]
[310110130,1704349848837,-500.0,0.00033424,2]
[310110131,1704349848847,-762.65,0.00033424,2]
[310110132,1704349848857,-500.0,0.00033424,2]
[310110133,1704349848867,-500.0,0.00033424,2]
[310110134,1704349848876,-322.83652821,0.00033424,2]
[310110135,1704349848887,-500.0,0.00033424,2]
[310110136,1704349848899,-500.0,0.00033424,2]
[310110137,1704349848910,-500.0,0.00033424,2]
[310110138,1704349848920,-639.89,0.00033424,2]
[310110139,1704349848930,-500.0,0.00033424,2]
[310110140,1704349848940,-500.0,0.00033424,2]
[310110141,1704349848949,-250.3303365,0.00033424,2]
[310110142,1704349848959,-397.91985398,0.00033424,2]
[310110143,1704349848969,-500.0,0.00033424,2]
[310110144,1704349848979,-500.0,0.00033424,2]
[310110145,1704349848988,-527.61,0.00033424,2]
[310110146,1704349848998,-500.0,0.00033424,2]
[310110147,1704349849008,-500.0,0.00033424,2]
[310110148,1704349849018,-500.0,0.00033424,2]
[310110149,1704349849027,-500.27276629,0.00033424,2]
[310110150,1704349849037,-500.0,0.00033424,2]
[310110151,1704349849047,-500.0,0.00033424,2]
[310110152,1704349849057,-500.0,0.00033424,2]
[310110153,1704349849067,-500.0,0.00033424,2]
[310110154,1704349849077,-500.0,0.00033424,2]
[310110155,1704349849087,-500.0,0.00033424,2]
[310110156,1704349849096,-500.0,0.00033424,2]
[310110157,1704349849106,-282.68763278,0.00033424,2]
[310110158,1704349849116,-500.0,0.00033424,2]
[310110159,1704349849126,-500.0,0.00033424,2]
[310110160,1704349849136,-500.0,0.00033424,2]
[310110161,1704349849146,-500.0,0.00033424,2]
[310110162,1704349849156,-500.0,0.00033424,2]
[310110163,1704349849165,-500.0,0.00033424,2]
[310110164,1704349849175,-500.0,0.00033424,2]
[310110165,1704349849184,-500.0,0.00033424,2]
[310110166,1704349849194,-500.0,0.00033424,2]
[310110167,1704349849204,-500.0,0.00033424,2]
[310110168,1704349849214,-840.26,0.00033424,2]
[310110169,1704349849224,-500.0,0.00033424,2]
[310110170,1704349849238,-500.0,0.00033424,2]
[310110171,1704349849248,-500.0,0.00033424,2]
[310110172,1704349849258,-500.0,0.00033424,2]
[310110173,1704349849268,-500.0,0.00033424,2]
[310110174,1704349849277,-500.0,0.00033424,2]
[310110175,1704349849287,-500.0,0.00033424,2]
[310110176,1704349849297,-500.0,0.00033424,2]
[310110177,1704349849307,-500.0,0.00033424,2]
[310110178,1704349849317,-306.58845371,0.00033424,2]
[310110179,1704349849327,-506.33751517,0.00033424,2]
[310110180,1704349849337,-500.0,0.00033424,2]
[310110181,1704349849346,-500.0,0.00033424,2]
[310110182,1704349849356,-500.0,0.00033424,2]
[310110183,1704349849366,-500.0,0.00033424,2]
[310110184,1704349849376,-500.0,0.00033424,2]
[310110185,1704349849386,-500.0,0.00033424,2]
[310110186,1704349849396,-500.0,0.00033424,2]
[310110187,1704349849408,-500.0,0.00033424,2]
[310110188,1704349849418,-500.0,0.00033424,2]
[310110189,1704349849428,-500.0,0.00033424,2]
[310110190,1704349849437,-311.5568254,0.00033424,2]
[310110191,1704349849447,-500.0,0.00033424,2]
[310110192,1704349849458,-500.0,0.00033424,2]
[310110193,1704349849468,-307.6026891,0.00033424,2]
[310110194,1704349849478,-1684.0,0.00033424,2]
[310110195,1704349849488,-500.0,0.00033424,2]
[310110196,1704349849498,-500.0,0.00033424,2]
[310110197,1704349849507,-500.0,0.00033424,2]
[310110198,1704349849518,-500.0,0.00033424,2]
[310110199,1704349849527,-500.0,0.00033424,2]
[310110200,1704349849538,-500.0,0.00033424,2]
[310110201,1704349849548,-500.0,0.00033424,2]
[310110202,1704349849558,-548.67,0.00033424,2]
[310110203,1704349849568,-500.0,0.00033424,2]
[310110204,1704349849578,-500.0,0.00033424,2]
[310110205,1704349849587,-500.0,0.00033424,2]
[310110206,1704349849597,-500.0,0.00033424,2]
[310110207,1704349849607,-500.0,0.00033424,2]
[310110208,1704349849616,-189.70924825,0.00033424,2]
[310110209,1704349849626,-500.0,0.00033424,2]
[310110210,1704349849636,-1184.96,0.00033424,2]
[310110211,1704349849645,-523.35,0.00033424,2]
[310110212,1704349849655,-416.52,0.00033424,2]
[310110213,1704349849665,-500.0,0.00033424,2]
[310110214,1704349849675,-500.0,0.00033424,2]
[310110215,1704349849685,-500.0,0.00033424,2]
[310110216,1704349849695,-500.0,0.00033424,2]
[310110217,1704349849704,-500.0,0.00033424,2]
[310110218,1704349849714,-500.0,0.00033424,2]
[310110219,1704349849724,-500.0,0.00033424,2]
[310110220,1704349849733,-1850.82,0.00033424,2]
[310110221,1704349849744,-500.0,0.00033424,2]
[310110222,1704349849754,-618.3504903,0.00033424,2]
[310110223,1704349849764,-586.0,0.00033424,2]
[310110224,1704349849774,-500.0,0.00033424,2]
[310110225,1704349849784,-500.0,0.00033424,2]
[310110226,1704349849795,-758.71,0.00033424,2]
[310110227,1704349849805,-500.0,0.00033424,2]
[310110228,1704349849815,-500.0,0.00033424,2]
[310110229,1704349849824,-273.05344286,0.00033424,2]
[310110230,1704349849834,-675.04,0.00033424,2]
[310110231,1704349849843,-500.0,0.00033424,2]
[310110232,1704349849854,-169.52552919,0.00033424,2]
[310110233,1704349849864,-604.67,0.00033424,2]
[310110234,1704349849874,-500.0,0.00033424,2]
[310110235,1704349849887,-500.0,0.00033424,2]
[310110236,1704349849899,-535.95,0.00033424,2]
[310110237,1704349849911,-500.0,0.00033424,2]
[310110238,1704349849921,-500.0,0.00033424,2]
[310110239,1704349849930,-402.01840018,0.00033424,2]
[310110240,1704349849940,-500.0,0.00033424,2]
[310110241,1704349849950,-559.91570565,0.00033424,2]
[310110242,1704349849959,-570.72,0.00033424,2]
[310110243,1704349849969,-500.0,0.00033424,2]
[310110244,1704349849979,-946.49,0.00033424,2]
[310110245,1704349849989,-500.0,0.00033424,2]
[310110246,1704349849999,-513.85,0.00033424,2]
[310110247,1704349850009,-500.0,0.00033424,2]
[310110248,1704349850020,-500.0,0.00033424,2]
[310110249,1704349850030,-500.0,0.00033424,2]
[310110250,1704349850040,-500.0,0.00033424,2]
[310110251,1704349850050,-500.0,0.00033424,2]
[310110252,1704349850060,-500.0,0.00033424,2]
[310110253,1704349850070,-500.0,0.00033424,2]
[310110254,1704349850080,-500.0,0.00033424,2]
[310110255,1704349850090,-500.0,0.00033424,2]
[310110256,1704349850100,-500.0,0.00033424,2]
[310110257,1704349850110,-500.0,0.00033424,2]
[310110258,1704349850120,-7480.22,0.00033424,2]
[310110259,1704349850131,-500.0,0.00033424,2]
[310110260,1704349850142,-503.32049447,0.00033424,2]
[310110261,1704349850152,-500.0,0.00033424,2]
[310110262,1704349850162,-500.0,0.00033424,2]
[310110263,1704349850171,-500.0,0.00033424,2]
[310110264,1704349850181,-503.59,0.00033424,2]
[310110265,1704349850191,-912.18,0.00033424,2]
[310110266,1704349850201,-3398.57,0.00033424,2]
[310110267,1704349850211,-500.0,0.00033424,2]
[310110268,1704349850221,-500.0,0.00033424,2]
[310110269,1704349850231,-500.0,0.00033424,2]
[310110270,1704349850241,-736.91,0.00033424,2]
[310110271,1704349850251,-652.15,0.00033424,2]
[310110272,1704349850261,-500.0,0.00033424,2]
[310110273,1704349850271,-500.0,0.00033424,2]
[310110274,1704349850281,-500.0,0.00033424,2]
[310110275,1704349850291,-500.0,0.00033424,2]
[310110276,1704349850301,-1606.4,0.00033424,2]
[310110277,1704349850312,-563.9,0.00033424,2]
[310110278,1704349850322,-500.0,0.00033424,2]
[310110279,1704349850332,-500.0,0.00033424,2]
[310110280,1704349850342,-500.0,0.00033424,2]
[310110281,1704349850352,-1352.7,0.00033424,2]
[310110282,1704349850362,-500.0,0.00033424,2]
[310110283,1704349850373,-4481.83,0.00033424,2]
[310110284,1704349850620,-500.0,0.00033424,2]
[310110285,1704349850638,-500.0,0.00033424,2]
[310110286,1704349850647,-500.0,0.00033424,2]
[310110287,1704349850658,-500.0,0.00033424,2]
[310110288,1704349850668,-500.0,0.00033424,2]
[310110289,1704349850678,-500.0,0.00033424,2]
[310110290,1704349850688,-500.0,0.00033424,2]
[310110291,1704349850698,-500.0,0.00033424,2]
[310110292,1704349850708,-5182.76,0.00033424,2]
[310110293,1704349850718,-953.44,0.00033424,2]
[310110294,1704349850727,-500.0,0.00033424,2]
[310110295,1704349850737,-500.0,0.00033424,2]
[310110296,1704349850746,-500.0,0.00033424,2]
[310110297,1704349850756,-770.89,0.00033424,2]
[310110298,1704349850765,-500.0,0.00033424,2]
[310110299,1704349850775,-500.0,0.00033424,2]
[310110300,1704349850784,-500.0,0.00033424,2]
[310110301,1704349850795,-724.76,0.00033424,2]
[310110302,1704349850805,-500.0,0.00033424,2]
[310110303,1704349850814,-500.0,0.00033424,2]
[310110304,1704349850825,-2404.95,0.00033424,2]
[310110305,1704349850835,-500.0,0.00033424,2]
[310110306,1704349850844,-500.0,0.00033424,2]
[310110307,1704349850854,-3912.6,0.00033424,2]
[310110308,1704349850863,-1354.54,0.00033424,2]
[310110309,1704349850873,-2195.14,0.00033424,2]
[310110310,1704349850882,-500.0,0.00033424,2]
[310110311,1704349850892,-683.76,0.00033424,2]
[310110312,1704349850902,-2714.72,0.00033424,2]
[310110313,1704349850912,-206.94458823,0.00033424,2]
[310110314,1704349850922,-898.43,0.00033424,2]
[310110315,1704349850931,-500.0,0.00033424,2]
[310110316,1704349850941,-500.0,0.00033424,2]
[310110317,1704349850950,-934.24,0.00033424,2]
[310110318,1704349850960,-500.0,0.00033424,2]
[310110319,1704349850969,-500.0,0.00033424,2]
[310110320,1704349850979,-1236.58,0.00033424,2]
[310110321,1704349850988,-500.0,0.00033424,2]
[310110322,1704349850998,-500.0,0.00033424,2]
[310110323,1704349851007,-1981.7,0.00033424,2]
[310110324,1704349851017,-500.0,0.00033424,2]
[310110325,1704349851027,-500.0,0.00033424,2]
[310110326,1704349851036,-500.0,0.00033424,2]
[310110327,1704349851046,-1139.34,0.00033424,2]
[310110328,1704349851056,-1117.56,0.00033424,2]
[310110329,1704349851066,-852.6,0.00033424,2]
[310110330,1704349851075,-500.0,0.00033424,2]
[310110331,1704349851085,-500.0,0.00033424,2]
[310110332,1704349851095,-748.14,0.00033424,2]
[310110333,1704349851105,-964.4,0.00033424,2]
[310110334,1704349851115,-1575.24,0.00033424,2]
[310110335,1704349851124,-799.05,0.00033424,2]
[310110336,1704349851144,-500.0,0.00033424,2]
[310110337,1704349851158,-564.75864591,0.00033424,2]
[310110338,1704349851169,-3995.77,0.00033424,2]
[310110339,1704349851180,-500.0,0.00033424,2]
[310110340,1704349851191,-500.0,0.00033424,2]
[310110341,1704349851202,-500.0,0.00033424,2]
[310110342,1704349851212,-1339.41,0.00033424,2]
[310110343,1704349851223,-500.0,0.00033424,2]
[310110344,1704349851233,-643.70296058,0.00033424,2]
[310110345,1704349851243,-776.16,0.00033424,2]
[310110346,1704349851254,-500.0,0.00033424,2]
[310110347,1704349851264,-561.55,0.00033424,2]
[310110348,1704349851274,-500.0,0.00033424,5]
[310110349,1704349851284,-500.0,0.00033424,2]
[310110350,1704349851294,-500.0,0.00033424,2]
[310110351,1704349851305,-1296.51,0.00033424,2]
[310110352,1704349851315,-5049.51,0.00033424,2]
[310110353,1704349851326,-652.68,0.00033424,2]
[310110354,1704349851336,-500.0,0.00033424,2]
[310110355,1704349851346,-500.0,0.00033424,2]
[310110356,1704349851356,-486.84829086,0.00033424,2]
[310110357,1704349851367,-527.69002579,0.00033424,2]
[310110358,1704349851376,-500.0,0.00033424,2]
[310110359,1704349851387,-644.93,0.00033424,2]
[310110360,1704349851397,-500.0,0.00033424,2]
[310110361,1704349851409,-500.0,0.00033424,2]
[310110362,1704349851419,-500.0,0.00033424,2]
[310110363,1704349851430,-10515.77,0.00033424,2]
[310110364,1704349851440,-500.0,0.00033424,2]
[310110365,1704349851451,-500.0,0.00033424,2]
[310110366,1704349851461,-5402.63,0.00033424,2]
[310110367,1704349851472,-283.01603493,0.00033424,2]
[310110368,1704349851482,-500.0,0.00033424,2]
[310110369,1704349851493,-624.73,0.00033424,2]
[310110370,1704349851503,-2900.89,0.00033424,2]
[310110371,1704349851513,-728.85,0.00033424,2]
[310110372,1704349851523,-364.5,0.00033424,7]
[310110373,1704349851533,-364.5,0.00033424,7]
[310110374,1704349851543,-183.139134,0.00033424,7]
[310110375,1704349851553,-183.139134,0.00033424,7]
[310110376,1704349851563,-227.2794303,0.00033424,6]
[310110377,1704349851574,-151.0,0.00033436,7]
[310110378,1704349851583,-500.0,0.0003346,2]
[310110379,1704349851593,-3448.0271994,0.0003346,5]
[310110380,1704349851603,-2500.0,0.00033463,7]
[310110381,1704349851613,-154.59,0.00033478,2]
[310110382,1704349851623,-223.16,0.00033484,2]
[310110383,1704349851633,-16484.71620163,0.00033492,10]
[310110384,1704349851642,-10220.3771394,0.00033492,10]
[310110385,1704349851652,-4230.73126875,0.00033492,10]
[310110386,1704349851663,-21756.7102521,0.00033492,10]
[310110387,1704349851673,-175.77,0.00033492,2]
[310110388,1704349851683,-14782.80304707,0.00033492,10]
[310110389,1704349851693,-152.038699,0.00033492,7]
[310110390,1704349851703,-151.0,0.00033492,7]
[310110391,1704349851713,-157.40104,0.00033498,2]
[310110392,1704349851723,-880.23,0.00033509,2]
[310110393,1704349851732,-183.139134,0.00033546,7]
[310110394,1704349851742,-183.139134,0.00033546,7]
[310110395,1704349851752,-2000.0,0.00033546,2]
[310110396,1704349851761,-23924.072016,0.00033546,2]
[310110397,1704349851771,-179.461115,0.00033546,2]
[310110398,1704349851781,-179.896191,0.00033546,2]
[310110399,1704349851791,-371.296954,0.00033546,2]
[310110400,1704349851801,-26748.0020801,0.00033554,2]
[310110401,1704349851811,-1116.1846997,0.00033577,2]
[310110402,1704349851821,-137669.7098306,0.00033577,2]
[310110403,1704349851831,-6047.7247237,0.00033577,2]
[310110404,1704349851841,-191.58,0.00033596,2]
[310110405,1704349851851,-157.40104,0.00033598,2]
[310110406,1704349851861,-500.0,0.00033599,2]
[310110407,1704349851870,-7728.7538257,0.000336,2]
[310110408,1704349851880,-300337.055,0.000336,6]
[310110409,1704349851890,-364.5,0.000336,7]
[310110410,1704349851900,-364.5,0.000336,7]
[310110411,1704349851913,-183.139134,0.000336,7]
[310110412,1704349851923,-183.139134,0.000336,7]
[310110413,1704349851933,-151.0,0.000336,7]
[310110414,1704349851942,-1926.2199215,0.00033652,2]
[310110415,1704349851952,-880.23,0.00033672,2]
[310110416,1704349851961,-500.0,0.00033674,2]
[310110417,1704349851970,-500.0,0.00033674,2]
[310110418,1704349851980,-500.0,0.00033674,2]
[310110419,1704349851989,-199.95048872,0.00033674,2]
[310110420,1704349851999,-23550.4876305,0.00033675,2]
[310110421,1704349852009,-3448.0271994,0.00033676,5]
[310110422,1704349852018,-154.59,0.00033689,2]
[310110423,1704349852028,-1339.21049052,0.00033695,2]
[310110424,1704349852037,-1105.69,0.00033698,2]
[310110425,1704349852047,-157.40104,0.00033698,2]
[310110426,1704349852057,-500.0,0.00033698,2]
[310110427,1704349852066,-500.0,0.00033698,2]
[310110428,1704349852075,-500.0,0.00033698,2]
[310110429,1704349852085,-523.01,0.00033698,2]
[310110430,1704349852095,-500.0,0.00033698,2]
[310110431,1704349852104,-1243.37,0.00033698,2]
[310110432,1704349852113,-500.0,0.00033698,2]
[310110433,1704349852123,-500.0,0.00033698,2]
[310110434,1704349852132,-981.28,0.00033698,2]
[310110435,1704349852142,-500.0,0.00033698,2]
[310110436,1704349852151,-500.0,0.00033698,2]
[310110437,1704349852162,-500.0,0.00033698,2]
[310110438,1704349852171,-500.0,0.00033698,2]
[310110439,1704349852181,-500.0,0.00033698,2]
[310110440,1704349852190,-500.0,0.00033698,2]
[310110441,1704349852200,-500.0,0.00033698,2]
[310110442,1704349852209,-500.0,0.00033698,2]
[310110443,1704349852218,-762.65,0.00033698,2]
[310110444,1704349852227,-500.0,0.00033698,2]
[310110445,1704349852236,-500.0,0.00033698,2]
[310110446,1704349852246,-500.0,0.00033698,2]
[310110447,1704349852255,-500.0,0.00033698,2]
[310110448,1704349852265,-500.0,0.00033698,2]
[310110449,1704349852274,-639.89,0.00033698,2]
[310110450,1704349852284,-500.0,0.00033698,2]
[310110451,1704349852293,-500.0,0.00033698,2]
[310110452,1704349852303,-500.0,0.00033698,2]
[310110453,1704349852313,-500.0,0.00033698,2]
[310110454,1704349852323,-527.61,0.00033698,2]
[310110455,1704349852332,-500.0,0.00033698,2]
[310110456,1704349852341,-636.62108787,0.00033698,2]
[310110457,1704349852351,-500.0,0.00033698,2]
[310110458,1704349852361,-500.0,0.00033698,2]
[310110459,1704349852370,-439.84055003,0.00033698,2]
[310110460,1704349852380,-500.0,0.00033698,2]
[310110461,1704349852389,-500.0,0.00033698,2]
[310110462,1704349852398,-500.0,0.00033698,2]
[310110463,1704349852409,-264.77288212,0.00033698,2]
[310110464,1704349852418,-500.0,0.00033698,2]
[310110465,1704349852428,-500.0,0.00033698,2]
[310110466,1704349852437,-500.0,0.00033698,2]
[310110467,1704349852448,-549.12721883,0.00033698,2]
[310110468,1704349852457,-500.0,0.00033698,2]
[310110469,1704349852467,-500.0,0.00033698,2]
[310110470,1704349852476,-500.0,0.00033698,2]
[310110471,1704349852486,-500.0,0.00033698,2]
[310110472,1704349852495,-263.448447,0.00033698,2]
[310110473,1704349852505,-500.0,0.00033698,2]
[310110474,1704349852514,-500.0,0.00033698,2]
[310110475,1704349852524,-840.26,0.00033698,2]
[310110476,1704349852533,-500.0,0.00033698,2]
[310110477,1704349852543,-500.0,0.00033698,2]
[310110478,1704349852553,-500.0,0.00033698,2]
[310110479,1704349852562,-500.0,0.00033698,2]
[310110480,1704349852571,-500.0,0.00033698,2]
[310110481,1704349852580,-500.0,0.00033698,2]
[310110482,1704349852590,-500.0,0.00033698,2]
[310110483,1704349852599,-500.0,0.00033698,2]
[310110484,1704349852609,-649.8219394,0.00033698,2]
[310110485,1704349852622,-500.0,0.00033698,2]
[310110486,1704349852631,-434.0319091,0.00033698,2]
[310110487,1704349852641,-500.0,0.00033698,2]
[310110488,1704349852651,-451.26690778,0.00033698,2]
[310110489,1704349852662,-500.0,0.00033698,2]
[310110490,1704349852671,-500.0,0.00033698,2]
[310110491,1704349852680,-500.0,0.00033698,2]
[310110492,1704349852691,-500.0,0.00033698,2]
[310110493,1704349852701,-500.0,0.00033698,2]
[310110494,1704349852711,-541.07268217,0.00033698,2]
[310110495,1704349852721,-500.0,0.00033698,2]
[310110496,1704349852730,-500.0,0.00033698,2]
[310110497,1704349852740,-1684.0,0.00033698,2]
[310110498,1704349852749,-500.0,0.00033698,2]
[310110499,1704349852759,-500.0,0.00033698,2]
[310110500,1704349852768,-500.0,0.00033698,2]
[310110501,1704349852777,-500.0,0.00033698,2]
[310110502,1704349852786,-432.89921983,0.00033698,2]
[310110503,1704349852796,-500.0,0.00033698,2]
[310110504,1704349852806,-500.0,0.00033698,2]
[310110505,1704349852817,-548.67,0.00033698,2]
[310110506,1704349852826,-500.0,0.00033698,2]
[310110507,1704349852836,-500.0,0.00033698,2]
[310110508,1704349852846,-565.38733738,0.00033698,2]
[310110509,1704349852856,-421.01573561,0.00033698,2]
[310110510,1704349852865,-500.0,0.00033698,2]
[310110511,1704349852874,-1184.96,0.00033698,2]
[310110512,1704349852884,-523.35,0.00033698,2]
[310110513,1704349852893,-416.52,0.00033698,2]
[310110514,1704349852906,-191.99126115,0.00033698,2]
[310110515,1704349852915,-500.0,0.00033698,2]
[310110516,1704349852924,-500.0,0.00033698,2]
[310110517,1704349852934,-500.0,0.00033698,2]
[310110518,1704349852943,-500.0,0.00033698,2]
[310110519,1704349852953,-500.0,0.00033698,2]
[310110520,1704349852963,-500.0,0.00033698,2]
[310110521,1704349853059,-1850.82,0.00033698,2]
[310110522,1704349853068,-500.0,0.00033698,2]
[310110523,1704349853077,-586.0,0.00033698,2]
[310110524,1704349853087,-500.0,0.00033698,2]
[310110525,1704349853096,-500.0,0.00033698,2]
[310110526,1704349853105,-758.71,0.00033698,2]
[310110527,1704349853114,-500.0,0.00033698,2]
[310110528,1704349853123,-500.0,0.00033698,2]
[310110529,1704349853133,-675.04,0.00033698,2]
[310110530,1704349853142,-500.0,0.00033698,2]
[310110531,1704349853151,-604.67,0.00033698,2]
[310110532,1704349853161,-500.0,0.00033698,2]
[310110533,1704349853170,-447.87247188,0.00033698,2]
[310110534,1704349853180,-535.95,0.00033698,2]
[310110535,1704349853190,-500.0,0.00033698,2]
[310110536,1704349853199,-500.0,0.00033698,2]
[310110537,1704349853208,-500.0,0.00033698,2]
[310110538,1704349853217,-570.72,0.00033698,2]
[310110539,1704349853227,-500.0,0.00033698,2]
[310110540,1704349853236,-946.49,0.00033698,2]
[310110541,1704349853245,-500.0,0.00033698,2]
[310110542,1704349853255,-513.85,0.00033698,2]
[310110543,1704349853264,-500.0,0.00033698,2]
[310110544,1704349853273,-196.83798736,0.00033698,2]
[310110545,1704349853282,-378.56558452,0.00033698,2]
[310110546,1704349853291,-500.0,0.00033698,2]
[310110547,1704349853305,-500.0,0.00033698,2]
[310110548,1704349853314,-500.0,0.00033698,2]
[310110549,1704349853323,-500.0,0.00033698,2]
[310110550,1704349853333,-500.0,0.00033698,2]
[310110551,1704349853342,-500.0,0.00033698,2]
[310110552,1704349853351,-500.0,0.00033698,2]
[310110553,1704349853360,-500.0,0.00033698,2]
[310110554,1704349853370,-7480.22,0.00033698,2]
[310110555,1704349853378,-500.0,0.00033698,2]
[310110556,1704349853388,-500.0,0.00033698,2]
[310110557,1704349853396,-500.0,0.00033698,2]
[310110558,1704349853406,-500.0,0.00033698,2]
[310110559,1704349853414,-503.59,0.00033698,2]
[310110560,1704349853424,-912.18,0.00033698,2]